bitfinex/quotes_BTCUSD_20250723
["timestamp","ask_amount","ask_price","bid_price","bid_amount"]
[1753264666386,0.25338968,118250.0,118240.0,0.71827911]
[1753264669040,0.25338968,118250.0,118240.0,0.39634284]
[1753264669261,0.26922446,118250.0,118240.0,0.58863911]
[1753264669499,0.27966076,118250.0,118240.0,0.71823911]
[1753264670368,0.27120446,118250.0,118240.0,0.71823911]
[1753264670685,0.26274823,118250.0,118240.0,0.71823911]
[1753264670916,0.26076823,118250.0,118240.0,0.71823911]
[1753264671201,0.26076823,118250.0,118240.0,0.71816934]
[1753264672503,0.26076816,118250.0,118240.0,0.71816934]
[1753264672708,0.26076809,118250.0,118240.0,0.71816934]
[1753264672962,0.26076809,118250.0,118240.0,0.75116934]
[1753264673174,0.26922417,118250.0,118240.0,0.75116934]
[1753264673399,0.27767988,118250.0,118240.0,0.75116934]
[1753264673935,0.28613618,118250.0,118240.0,0.75116934]
[1753264674461,0.27767988,118250.0,118240.0,0.75116934]
[1753264675283,0.28613618,118250.0,118240.0,0.71816934]
[1753264675421,0.27767988,118250.0,118240.0,0.71816934]
[1753264675618,0.27767988,118250.0,118240.0,1.17292252]
[1753264675619,0.302,118250.0,118240.0,1.17292252]
[1753264675825,0.302,118250.0,118240.0,0.85098625]
[1753264676071,0.32736853,118250.0,118240.0,0.71812934]
[1753264676272,0.32089223,118250.0,118240.0,0.71812934]
[1753264676468,0.65291596,118250.0,118240.0,0.69594546]
[1753264676714,0.67566675,118250.0,118240.0,0.69594546]
[1753264676914,0.67566675,118250.0,118240.0,0.67903122]
[1753264677115,0.81074437,118250.0,118240.0,0.32193627]
[1753264677327,0.81074437,118250.0,118240.0,0.45149627]
[1753264677970,0.81274437,118250.0,118240.0,0.45149627]
[1753264683585,0.81274437,118250.0,118240.0,0.12956]
[1753264683791,0.81274437,118250.0,118240.0,0.45149627]
[1753264684245,0.81274437,118250.0,118240.0,0.12956]
[1753264685039,0.81274437,118250.0,118240.0,0.17956]
[1753264685427,0.81274437,118250.0,118240.0,0.12956]
[1753264685963,0.81274437,118250.0,118240.0,0.17956]
[1753264688301,0.81274437,118250.0,118240.0,0.12956]
[1753264688873,6.18468064,118250.0,118240.0,0.12956]
[1753264690276,5.86274437,118250.0,118240.0,0.12956]
[1753264690867,6.52468064,118250.0,118240.0,0.12956]
[1753264691108,6.20274437,118250.0,118240.0,0.12956]
[1753264691358,0.36050472,118240.0,118230.0,0.37193627]
[1753264691548,0.36050472,118240.0,118220.0,0.2989]
[1753264691549,0.69301974,118230.0,118220.0,0.2989]
[1753264691758,6.24533091,118230.0,118220.0,0.12948]
[1753264691916,5.84533091,118230.0,118220.0,0.45141627]
[1753264692331,5.85323913,118230.0,118220.0,0.45141627]
[1753264692715,5.82073913,118230.0,118220.0,0.45141627]
[1753264692905,5.82082242,118230.0,118220.0,0.50141627]
[1753264694044,5.85372242,118230.0,118220.0,0.50141627]
[1753264694249,5.85372242,118230.0,118220.0,0.45141627]
[1753264694451,5.85372242,118230.0,118220.0,0.50141627]
[1753264694997,5.85371823,118230.0,118220.0,0.50141627]
[1753264695472,5.85371823,118230.0,118220.0,0.45141627]
[1753264695699,5.8458142,118230.0,118220.0,0.45141627]
[1753264695922,5.8468142,118230.0,118220.0,0.45141627]
[1753264696913,5.8497842,118230.0,118210.0,0.92519318]
[1753264697134,5.46211207,118220.0,118210.0,0.20308]
[1753264697343,0.49692594,118220.0,118210.0,0.33256]
[1753264697557,0.49692594,118220.0,118210.0,0.38256]
[1753264697994,0.49692594,118220.0,118210.0,0.33256]
[1753264698207,0.50185422,118220.0,118210.0,0.33256]
[1753264698425,0.49395594,118220.0,118210.0,0.70449627]
[1753264698642,0.49395594,118220.0,118210.0,0.65449627]
[1753264699060,0.49395594,118220.0,118210.0,0.33256]
[1753264699479,0.49395594,118220.0,118210.0,0.38256]
[1753264700059,0.46150879,118220.0,118210.0,0.38256]
[1753264700404,0.46150879,118220.0,118210.0,0.70449627]
[1753264700889,0.48692179,118220.0,118210.0,0.33256]
[1753264701039,0.48692179,118220.0,118210.0,0.65449627]
[1753264701235,0.48692179,118220.0,118210.0,0.70449627]
[1753264701855,0.48792179,118220.0,118210.0,0.70449627]
[1753264702900,0.48892179,118220.0,118210.0,0.70449627]
[1753264703236,0.48892179,118220.0,118210.0,0.65449627]
[1753264703442,0.48892179,118220.0,118210.0,0.38256]
[1753264704170,0.48892179,118220.0,118210.0,0.70449627]
[1753264705503,0.48892179,118220.0,118210.0,0.65449627]
[1753264705708,0.51379363,118220.0,118210.0,0.65449627]
[1753264705921,0.51378205,118220.0,118210.0,0.65449627]
[1753264706396,0.48218205,118220.0,118210.0,0.70659627]
[1753264706592,0.48218205,118220.0,118210.0,0.70965627]
[1753264708855,0.48218205,118220.0,118210.0,0.38772]
[1753264709067,0.48218205,118220.0,118210.0,0.70965627]
[1753264711803,0.48218842,118220.0,118210.0,0.70965627]
[1753264713603,0.45731658,118220.0,118210.0,0.70965627]
[1753264713802,0.47163507,118220.0,118210.0,0.65449627]
[1753264713961,0.48741658,118220.0,118210.0,0.65449627]
[1753264714163,0.49531205,118220.0,118210.0,0.65449627]
[1753264714586,0.4953219,118220.0,118210.0,0.65449627]
[1753264715688,0.4953219,118220.0,118210.0,0.33256]
[1753264715884,0.5264219,118220.0,118210.0,0.25308]
[1753264716089,6.24131817,118220.0,118210.0,0.33248]
[1753264717202,6.20589407,118220.0,118210.0,0.33248]
[1753264717371,6.21181701,118220.0,118210.0,0.1294]
[1753264717986,6.23000944,118220.0,118210.0,0.1294]
[1753264718168,6.24745846,118220.0,118210.0,0.1294]
[1753264718578,1.22304473,118220.0,118210.0,0.1294]
[1753264718981,6.27204473,118220.0,118210.0,0.1294]
[1753264719442,6.27404473,118220.0,118210.0,0.1294]
[1753264719878,6.27204473,118220.0,118210.0,0.1294]
[1753264720096,6.27604473,118220.0,118210.0,0.1294]
[1753264720316,6.27504473,118220.0,118210.0,0.1294]
[1753264720541,6.25346289,118220.0,118210.0,0.1294]
[1753264721509,6.25346389,118220.0,118210.0,0.1294]
[1753264722238,5.96695172,118220.0,118210.0,0.1294]
[1753264722392,6.25346389,118220.0,118210.0,0.1294]
[1753264722931,6.2376681,118220.0,118210.0,0.1294]
[1753264723164,6.2534643,118220.0,118210.0,0.1294]
[1753264723378,6.25346613,118220.0,118210.0,0.1294]
[1753264724535,6.27623929,118220.0,118210.0,0.1294]
[1753264725161,6.32623929,118220.0,118210.0,0.1294]
[1753264725665,6.30451968,118220.0,118210.0,0.1294]
[1753264725876,6.28174652,118220.0,118210.0,0.1294]
[1753264726476,6.32624232,118220.0,118210.0,0.1294]
[1753264726680,6.31834353,118220.0,118210.0,0.1294]
[1753264726890,6.29662185,118220.0,118210.0,0.1294]
[1753264727098,6.32624287,118220.0,118210.0,0.1294]
[1753264727313,6.3124202,118220.0,118210.0,0.1294]
[1753264727533,6.32624386,118220.0,118210.0,0.1294]
[1753264727955,6.32624375,118220.0,118210.0,0.1294]
[1753264728174,6.35147558,118220.0,118210.0,0.1294]
[1753264729076,6.3514748,118220.0,118210.0,0.1294]
[1753264729546,1.12612469,118200.0,118190.0,0.11711691]
[1753264729761,6.28630862,118200.0,118190.0,0.19647691]
[1753264729965,6.28630862,118200.0,118190.0,0.24647691]
[1753264730389,6.31172662,118200.0,118190.0,0.24647691]
[1753264730688,6.31172254,118200.0,118190.0,0.28438691]
[1753264731348,6.31172254,118200.0,118190.0,0.20148691]
[1753264731569,6.31172254,118200.0,118190.0,0.25148691]
[1753264731750,6.31172254,118200.0,118190.0,0.20148691]
[1753264731983,6.31172254,118200.0,118190.0,0.28308691]
[1753264732187,6.31272254,118200.0,118190.0,0.28308691]
[1753264732396,6.312722,118200.0,118190.0,0.28308691]
[1753264733499,1.262722,118200.0,118190.0,0.28308691]
[1753264733672,6.312722,118200.0,118190.0,0.28308691]
[1753264735357,6.310712,118200.0,118190.0,0.28308691]
[1753264735572,6.310712,118200.0,118190.0,0.31388691]
[1753264735798,6.310712,118200.0,118190.0,0.60039908]
[1753264736014,6.312712,118200.0,118190.0,0.60039908]
[1753264736223,6.312712,118200.0,118190.0,0.31388691]
[1753264738462,6.312712,118200.0,118190.0,0.28308691]
[1753264739308,6.312712,118200.0,118190.0,0.60539899]
[1753264739509,6.31271849,118200.0,118190.0,0.60539899]
[1753264740701,6.29691773,118200.0,118190.0,0.60539899]
[1753264740931,6.31272064,118200.0,118190.0,0.60539899]
[1753264741371,6.31272295,118200.0,118190.0,0.60539899]
[1753264741556,6.31272295,118200.0,118190.0,0.58799899]
[1753264741769,6.31272295,118200.0,118190.0,0.63799899]
[1753264743986,6.28901999,118200.0,118190.0,0.63799899]
[1753264745066,6.28901999,118200.0,118190.0,0.63539899]
[1753264746500,6.31276559,118200.0,118190.0,0.63539899]
[1753264747557,6.31276559,118200.0,118190.0,0.58539899]
[1753264747768,6.31276559,118200.0,118190.0,0.63539899]
[1753264747905,6.31276559,118200.0,118190.0,0.58539899]
[1753264748110,6.31276559,118200.0,118190.0,0.63539899]
[1753264749124,6.31276559,118200.0,118190.0,0.60539899]
[1753264751137,6.31276559,118200.0,118190.0,0.23308691]
[1753264751345,6.31276559,118200.0,118190.0,0.60539899]
[1753264751555,6.31276939,118200.0,118190.0,0.60539899]
[1753264752704,6.31276939,118200.0,118190.0,0.53828208]
[1753264753891,6.30485039,118200.0,118190.0,0.53828208]
[1753264754121,6.31276979,118200.0,118190.0,0.21597]
[1753264754316,6.31276979,118200.0,118190.0,0.53828208]
[1753264756124,6.31276979,118200.0,118190.0,0.08661]
[1753264756389,6.31276979,118200.0,118190.0,0.53820208]
[1753264758039,6.28735179,118200.0,118190.0,0.53820208]
[1753264758253,6.28735304,118200.0,118190.0,0.53820208]
[1753264759130,1.09582429,118200.0,118190.0,0.75734259]
[1753264759355,0.17676207,118200.0,118190.0,1.15523203]
[1753264759553,0.453,118200.0,118190.0,1.15523203]
[1753264759844,0.303,118200.0,118190.0,1.15523203]
[1753264760270,0.31145959,118200.0,118190.0,1.15523203]
[1753264760512,0.31791932,118200.0,118190.0,1.15523203]
[1753264760695,0.334839,118200.0,118190.0,1.02595203]
[1753264760943,0.34329909,118200.0,118190.0,1.15519203]
[1753264761154,0.34429909,118200.0,118190.0,0.83287995]
[1753264761810,0.335839,118200.0,118190.0,0.83287995]
[1753264762026,0.34429909,118200.0,118190.0,0.83287995]
[1753264762484,0.34429966,118200.0,118190.0,0.76576304]
[1753264763121,0.34429966,118200.0,118190.0,1.06466304]
[1753264763331,0.51350496,118200.0,118190.0,1.06466304]
[1753264763576,0.52934638,118200.0,118190.0,1.06466304]
[1753264764983,0.35168142,118200.0,118190.0,1.06466304]
[1753264765218,0.32737984,118200.0,118190.0,1.06466304]
[1753264766661,0.33584,118200.0,118190.0,1.06466304]
[1753264766878,0.50504473,118200.0,118190.0,1.06466304]
[1753264767063,0.52086782,118200.0,118190.0,1.05620259]
[1753264767271,0.51240787,118200.0,118190.0,1.05620259]
[1753264770176,0.50394778,118200.0,118190.0,1.05620259]
[1753264770396,0.72150469,118200.0,118190.0,0.83706208]
[1753264770958,0.87350469,118200.0,118190.0,0.83706208]
[1753264773378,0.87150469,118200.0,118190.0,0.83706208]
[1753264774517,0.87150469,118200.0,118190.0,0.83699574]
[1753264774871,0.87150469,118200.0,118190.0,0.53809574]
[1753264776272,0.87358469,118200.0,118190.0,0.53510574]
[1753264776845,0.87358469,118200.0,118190.0,0.53803574]
[1753264777047,0.87357814,118200.0,118190.0,0.53803574]
[1753264777256,0.87357814,118200.0,118190.0,0.50643574]
[1753264778401,0.87357814,118200.0,118190.0,0.45155208]
[1753264778625,0.17767985,118190.0,118180.0,0.33233]
[1753264778920,0.26215715,118190.0,118180.0,0.40574208]
[1753264779132,0.26423715,118190.0,118180.0,0.40786208]
[1753264779564,0.26423715,118190.0,118180.0,0.53702208]
[1753264779787,0.26423715,118190.0,118180.0,0.53802208]
[1753264780002,0.26423715,118190.0,118180.0,0.53851516]
[1753264780217,0.26423715,118190.0,118180.0,0.48851516]
[1753264781398,0.26423715,118190.0,118180.0,0.53851516]
[1753264781918,0.26523715,118190.0,118180.0,0.53851516]
[1753264782133,0.26523715,118190.0,118180.0,0.50701516]
[1753264782355,0.26623715,118190.0,118180.0,0.13470308]
[1753264782577,0.26623715,118190.0,118180.0,0.45701516]
[1753264783266,0.26623715,118190.0,118180.0,0.50701516]
[1753264783467,0.26623715,118190.0,118180.0,0.54031516]
[1753264783811,0.26623715,118190.0,118180.0,0.49031516]
[1753264784033,0.26623715,118190.0,118180.0,0.54031516]
[1753264784250,0.60623715,118190.0,118180.0,0.50196516]
[1753264784447,0.65455326,118190.0,118180.0,0.50196516]
[1753264784651,0.65455326,118190.0,118180.0,0.05049308]
[1753264784855,5.73525326,118190.0,118180.0,0.12965308]
[1753264785186,5.73821326,118190.0,118180.0,0.12965308]
[1753264786622,5.73821326,118190.0,118180.0,0.45196516]
[1753264786833,5.73525326,118190.0,118180.0,0.45196516]
[1753264787415,0.66943715,118190.0,118180.0,0.50196516]
[1753264787625,5.73524467,118190.0,118180.0,0.45196516]
[1753264787840,5.71943715,118190.0,118180.0,0.50196516]
[1753264788032,5.73524467,118190.0,118180.0,0.50196516]
[1753264788289,5.73524467,118190.0,118180.0,0.45196516]
[1753264788468,5.73524467,118190.0,118180.0,0.50196516]
[1753264788648,5.70454467,118190.0,118180.0,0.50196516]
[1753264789401,5.70454467,118190.0,118180.0,0.32280516]
[1753264789623,5.70454467,118190.0,118180.0,0.45196516]
[1753264789918,5.70454467,118190.0,118180.0,0.50196516]
[1753264790884,5.70454467,118190.0,118180.0,0.45196516]
[1753264791092,5.70454467,118190.0,118180.0,0.50196516]
[1753264791629,5.70564536,118190.0,118180.0,0.50196516]
[1753264792873,5.70563772,118190.0,118180.0,0.50196516]
[1753264793075,5.73743772,118190.0,118180.0,0.45196516]
[1753264793290,6.0626998,118190.0,118180.0,0.00049308]
[1753264793505,6.0626998,118190.0,118180.0,0.12965308]
[1753264793906,5.74828665,118190.0,118180.0,0.12965308]
[1753264794184,6.07059873,118190.0,118180.0,0.12965308]
[1753264795113,6.09601973,118190.0,118180.0,0.00049308]
[1753264795335,6.09601973,118190.0,118180.0,0.12965308]
[1753264795336,6.1212483,118190.0,118180.0,0.12965308]
[1753264795950,6.1202483,118190.0,118180.0,0.12965308]
[1753264796450,6.1232483,118190.0,118180.0,0.12965308]
[1753264796666,6.16648613,118190.0,118180.0,0.12965308]
[1753264796882,6.16548613,118190.0,118180.0,0.12965308]
[1753264797102,6.16948613,118190.0,118180.0,0.12965308]
[1753264797320,6.13382477,118190.0,118180.0,0.12965308]
[1753264797530,5.84717405,118190.0,118180.0,0.12965308]
[1753264798222,5.82194548,118190.0,118180.0,0.12965308]
[1753264798438,5.82194548,118190.0,118180.0,0.00049308]
[1753264798625,5.82193235,118190.0,118180.0,0.12965308]
[1753264803192,5.82193277,118190.0,118180.0,0.12965308]
[1753264803422,6.10858349,118190.0,118180.0,0.12965308]
[1753264805184,1.0645055,118190.0,118180.0,0.12965308]
[1753264805392,6.1145055,118190.0,118180.0,0.12965308]
[1753264805828,6.11450628,118190.0,118180.0,0.12965308]
[1753264806041,6.10858349,118190.0,118180.0,0.12965308]
[1753264806246,5.82193277,118190.0,118180.0,0.12965308]
[1753264806464,6.11450754,118190.0,118180.0,0.12965308]
[1753264807127,6.11450754,118190.0,118180.0,0.00049308]
[1753264807345,6.13195656,118190.0,118180.0,0.00049308]
[1753264807556,6.15718513,118190.0,118180.0,0.12965308]
[1753264808226,6.15720551,118190.0,118180.0,0.12965308]
[1753264808436,6.15720551,118190.0,118180.0,0.00049308]
[1753264809332,6.15720685,118190.0,118180.0,0.00049308]
[1753264810521,1.17053337,118180.0,118150.0,0.13517691]
[1753264810801,1.1282877,118160.0,118150.0,0.22857691]
[1753264811033,6.27856713,118160.0,118150.0,0.22872477]
[1753264811292,6.28646889,118160.0,118150.0,0.19642477]
[1753264811519,6.27856713,118160.0,118150.0,0.06726477]
[1753264811753,6.27856713,118160.0,118150.0,0.00014786]
[1753264811754,6.32001572,118160.0,118150.0,0.00014786]
[1753264811983,6.35161572,118160.0,118150.0,0.12930786]
[1753264813218,6.31706572,118160.0,118150.0,0.12930786]
[1753264813474,6.31706572,118160.0,118150.0,0.12942786]
[1753264813696,6.31906572,118160.0,118150.0,0.12942786]
[1753264813930,6.32206572,118160.0,118150.0,0.12942786]
[1753264814382,6.32204304,118160.0,118150.0,0.12942786]
[1753264816028,6.29144304,118160.0,118150.0,0.16555786]
[1753264816269,6.28934304,118160.0,118150.0,0.19885786]
[1753264818102,6.29255373,118160.0,118150.0,0.16555786]
[1753264818813,6.31798073,118160.0,118150.0,0.16555786]
[1753264819411,6.31587073,118160.0,118150.0,0.16555786]
[1753264820179,6.31586704,118160.0,118150.0,0.16555786]
[1753264820427,6.34085868,118160.0,118150.0,0.16555786]
[1753264824450,6.34297868,118160.0,118150.0,0.16555786]
[1753264824938,6.34301868,118160.0,118150.0,0.16555786]
[1753264827751,6.34301868,118160.0,118150.0,0.03104786]
[1753264827971,6.6325894,118160.0,118150.0,0.00014786]
[1753264828197,6.72693883,118160.0,118150.0,0.00014786]
[1753264828459,6.74514624,118160.0,118150.0,0.00014786]
[1753264829305,1.69514624,118160.0,118150.0,0.13102786]
[1753264829742,6.71991767,118160.0,118150.0,0.13102786]
[1753264829949,6.43326695,118160.0,118150.0,0.13102786]
[1753264830394,6.53982696,118160.0,118150.0,0.13102786]
[1753264830937,6.53983317,118160.0,118150.0,0.13102786]
[1753264831377,6.5240541,118160.0,118150.0,0.13102786]
[1753264831594,6.53984666,118160.0,118150.0,0.13102786]
[1753264832836,6.53984666,118160.0,118150.0,0.00014786]
[1753264833256,6.53984666,118160.0,118150.0,0.13114786]
[1753264833669,6.53984666,118160.0,118150.0,0.00014786]
[1753264833876,6.5398492,118160.0,118150.0,0.13118786]
[1753264836194,6.5066492,118160.0,118150.0,0.13118786]
[1753264836396,6.5037292,118160.0,118150.0,0.13118786]
[1753264838674,6.5066492,118160.0,118150.0,0.13118786]
[1753264838882,6.5382492,118160.0,118150.0,0.13118786]
[1753264839091,6.4737292,118160.0,118150.0,0.13118786]
[1753264839722,6.47378185,118160.0,118150.0,0.13118786]
[1753264840473,1.42378185,118160.0,118150.0,0.13118786]
[1753264840682,6.47378185,118160.0,118150.0,0.13118786]
[1753264840901,6.47378185,118160.0,118150.0,0.00014786]
[1753264841116,6.47166185,118160.0,118150.0,0.16776786]
[1753264841750,6.47379264,118160.0,118150.0,0.16776786]
[1753264842175,6.47379338,118160.0,118150.0,0.16776786]
[1753264846072,6.79638398,118160.0,118150.0,0.16776786]
[1753264846410,6.47379338,118160.0,118150.0,0.16776786]
[1753264847309,6.79638398,118160.0,118150.0,0.16776786]
[1753264848051,6.78254062,118160.0,118150.0,0.16776786]
[1753264848226,6.79639294,118160.0,118150.0,0.16776786]
[1753264848951,6.79639294,118160.0,118150.0,0.13646786]
[1753264849166,6.79639294,118160.0,118150.0,0.13341786]
[1753264849590,6.79639294,118160.0,118150.0,0.13126786]
[1753264849799,6.82809294,118160.0,118150.0,0.13126786]
[1753264850006,6.83100294,118160.0,118150.0,0.13126786]
[1753264850237,6.84845196,118160.0,118150.0,0.00014786]
[1753264850449,6.90468053,118160.0,118150.0,0.00014786]
[1753264850663,7.05857369,118160.0,118150.0,0.00014786]
[1753264850871,7.10935369,118160.0,118150.0,0.00014786]
[1753264851080,7.05857369,118160.0,118150.0,0.00014786]
[1753264851437,7.05065618,118160.0,118150.0,0.00014786]
[1753264851639,7.05657157,118160.0,118150.0,0.00014786]
[1753264851963,7.05957157,118160.0,118150.0,0.00014786]
[1753264852410,2.00957157,118160.0,118150.0,0.00014786]
[1753264852583,7.05957157,118160.0,118150.0,0.00014786]
[1753264852796,7.05657157,118160.0,118150.0,0.00014786]
[1753264853008,0.58014001,118150.0,118140.0,0.0002]
[1753264853207,6.11703979,118150.0,118140.0,0.1314435]
[1753264853418,6.24680868,118150.0,118140.0,0.0002835]
[1753264854033,6.2642577,118150.0,118140.0,0.0002835]
[1753264854272,6.2642577,118150.0,118140.0,0.0012835]
[1753264854273,6.29462192,118150.0,118140.0,0.0012835]
[1753264854478,6.29462143,118150.0,118140.0,0.0012835]
[1753264854687,6.26425721,118150.0,118140.0,0.0012835]
[1753264855164,6.27039106,118150.0,118140.0,0.0012835]
[1753264855380,6.234683,118150.0,118140.0,0.0012835]
[1753264856010,5.94780046,118150.0,118140.0,0.0012835]
[1753264856226,1.14955506,118140.0,118130.0,0.1314]
[1753264856445,6.62094274,118140.0,118130.0,0.13154797]
[1753264856659,6.62094274,118140.0,118130.0,0.04266697]
[1753264856871,6.72562789,118140.0,118130.0,0.04266697]
[1753264857082,6.46417935,118140.0,118130.0,0.04266697]
[1753264857507,6.47538034,118140.0,118130.0,0.04266697]
[1753264857722,6.47538034,118140.0,118130.0,0.04366697]
[1753264858138,6.76226288,118140.0,118130.0,0.04366697]
[1753264859351,6.47538034,118140.0,118130.0,0.04366697]
[1753264860296,6.44358034,118140.0,118130.0,0.04366697]
[1753264860814,6.44358034,118140.0,118130.0,0.07656697]
[1753264861446,6.44358034,118140.0,118130.0,0.04366697]
[1753264863449,6.4376456,118140.0,118130.0,0.04366697]
[1753264863662,6.4297307,118140.0,118130.0,0.04366697]
[1753264863821,6.4297307,118140.0,118130.0,0.07952697]
[1753264864231,1.37180224,118140.0,118130.0,0.07952697]
[1753264864480,6.42180224,118140.0,118130.0,0.07952697]
[1753264864715,6.43760454,118140.0,118130.0,0.07952697]
[1753264864928,6.4435304,118140.0,118130.0,0.07952697]
[1753264867237,6.4435304,118140.0,118130.0,0.16836797]
[1753264867784,6.4435304,118140.0,118130.0,0.17049797]
[1753264868006,6.44352602,118140.0,118130.0,0.17049797]
[1753264868449,6.44352602,118140.0,118130.0,0.13250797]
[1753264869323,6.44352602,118140.0,118130.0,0.16929797]
[1753264869907,6.44352602,118140.0,118130.0,0.16644521]
[1753264870120,6.44352097,118140.0,118130.0,0.12965521]
[1753264870585,6.44352086,118140.0,118130.0,0.12965521]
[1753264871064,6.44352086,118140.0,118130.0,0.16614521]
[1753264871712,6.44352086,118140.0,118130.0,0.13494521]
[1753264872222,6.44352086,118140.0,118130.0,0.13178521]
[1753264872421,6.44352086,118140.0,118130.0,0.12965521]
[1753264872646,6.44352055,118140.0,118130.0,0.12965521]
[1753264873342,0.18623513,118130.0,118120.0,0.16706]
[1753264873560,5.32071243,118130.0,118120.0,0.30047]
[1753264873792,5.34440889,118130.0,118120.0,0.30047]
[1753264874091,5.50399455,118130.0,118120.0,0.23148]
[1753264874366,5.50991891,118130.0,118120.0,0.23148]
[1753264875127,5.50991891,118130.0,118120.0,0.23248]
[1753264875633,5.47671891,118130.0,118120.0,0.23248]
[1753264876107,5.47671891,118130.0,118120.0,0.23461]
[1753264876337,5.47462891,118130.0,118120.0,0.27047]
[1753264876793,5.47462891,118130.0,118120.0,0.30357]
[1753264877200,5.49283433,118130.0,118120.0,0.30357]
[1753264877372,5.49283433,118130.0,118120.0,0.27047]
[1753264878848,5.49287433,118130.0,118120.0,0.30227]
[1753264879266,5.49287433,118130.0,118120.0,0.30220707]
[1753264879472,5.49287433,118130.0,118120.0,0.49367652]
[1753264879675,5.49287433,118130.0,118120.0,0.62487652]
[1753264880721,0.44287433,118130.0,118120.0,0.62487652]
[1753264880924,5.46084523,118130.0,118120.0,0.62487652]
[1753264881159,5.49287433,118130.0,118120.0,0.62487652]
[1753264882310,5.49287433,118130.0,118120.0,0.30212707]
[1753264882515,5.49287433,118130.0,118120.0,0.27032707]
[1753264883576,5.49485433,118130.0,118120.0,0.27032707]
[1753264884504,5.81760378,118130.0,118120.0,0.27032707]
[1753264884732,5.49485433,118130.0,118120.0,0.27032707]
[1753264886311,5.49595502,118130.0,118120.0,0.27032707]
[1753264887049,5.49397502,118130.0,118120.0,0.27032707]
[1753264887278,5.81672447,118130.0,118120.0,0.30212707]
[1753264887720,5.81672447,118130.0,118120.0,0.27032707]
[1753264887939,5.81874447,118130.0,118120.0,0.27032707]
[1753264888152,5.84378157,118130.0,118120.0,0.23762707]
[1753264888368,5.85372337,118130.0,118120.0,0.23762707]
[1753264888600,6.23885803,118130.0,118120.0,1e-08]
[1753264888846,0.80838515,118120.0,118110.0,0.13156]
[1753264889058,6.29527058,118120.0,118110.0,0.13156]
[1753264889327,6.75559059,118120.0,118110.0,0.13156]
[1753264889573,6.78102959,118120.0,118110.0,0.13156]
[1753264889802,6.45828014,118120.0,118110.0,0.09592412]
[1753264890028,6.78102959,118120.0,118110.0,0.09592412]
[1753264890690,6.77456377,118120.0,118100.0,0.03554]
[1753264890891,5.31227751,118110.0,118100.0,0.03554]
[1753264891120,0.38232009,118110.0,118100.0,0.16901]
[1753264891352,0.38403409,118110.0,118100.0,0.16901]
[1753264891649,5.43606409,118110.0,118100.0,0.16901]
[1753264891863,5.45978809,118110.0,118100.0,0.16607]
[1753264892287,5.46078809,118110.0,118100.0,0.16901]
[1753264892555,5.47823711,118110.0,118100.0,0.0002]
[1753264892738,5.47823711,118110.0,118100.0,0.13152]
[1753264892739,5.83696171,118110.0,118100.0,0.13152]
[1753264893152,5.54996836,118110.0,118100.0,0.13152]
[1753264893353,5.54997583,118110.0,118100.0,0.13152]
[1753264893536,5.51797583,118110.0,118100.0,0.13152]
[1753264893775,5.51497583,118110.0,118100.0,0.13152]
[1753264893988,5.46672681,118110.0,118100.0,0.16747]
[1753264894655,5.46772681,118110.0,118100.0,0.16763]
[1753264897322,5.46179556,118110.0,118100.0,0.16763]
[1753264897724,5.46179556,118110.0,118100.0,0.13669]
[1753264897935,0.41179556,118110.0,118100.0,0.13669]
[1753264898140,0.38806409,118110.0,118100.0,0.13669]
[1753264898289,5.43806409,118110.0,118100.0,0.13164]
[1753264898494,5.46179556,118110.0,118100.0,0.13164]
[1753264899100,5.46179036,118110.0,118100.0,0.13164]
[1753264899281,5.46176887,118110.0,118100.0,0.13164]
[1753264899752,5.49356887,118110.0,118100.0,0.13164]
[1753264900395,6.17122124,118110.0,118100.0,0.0002]
[1753264900603,6.20237551,118110.0,118100.0,0.1316]
[1753264900936,6.22057777,118110.0,118100.0,0.1314]
[1753264901261,6.22057777,118110.0,118100.0,0.05429552]
[1753264901486,6.22057522,118110.0,118100.0,0.05429552]
[1753264902355,6.22057555,118110.0,118100.0,0.05429552]
[1753264902777,6.22057332,118110.0,118100.0,0.05429552]
[1753264902991,1.14911526,118100.0,118090.0,0.0002]
[1753264903235,1.14911526,118100.0,118090.0,0.13174764]
[1753264903236,6.60225194,118100.0,118090.0,0.13174764]
[1753264903497,6.69776466,118100.0,118090.0,0.13174764]
[1753264903710,6.72320766,118100.0,118090.0,0.13174764]
[1753264903927,6.43621431,118100.0,118090.0,0.13174764]
[1753264904358,6.43621431,118100.0,118090.0,0.13274764]
[1753264905309,6.43029084,118100.0,118090.0,0.13274764]
[1753264905762,6.42729084,118100.0,118090.0,0.13274764]
[1753264906207,6.26248765,118100.0,118090.0,0.13274764]
[1753264906430,6.27827679,118100.0,118090.0,0.13174764]
[1753264906658,6.27927679,118100.0,118090.0,0.13174764]
[1753264908291,6.76831916,118100.0,118090.0,0.13170764]
[1753264908549,6.76831617,118100.0,118090.0,0.00034764]
[1753264908764,6.82423551,118100.0,118090.0,0.00034764]
[1753264909439,6.84946408,118100.0,118090.0,0.00034764]
[1753264909697,0.86652367,118090.0,118080.0,0.13168]
[1753264909954,6.00692031,118090.0,118080.0,0.13168]
[1753264910167,6.1528365,118090.0,118080.0,0.13168]
[1753264910365,6.1782825,118090.0,118080.0,0.13168]
[1753264910575,6.19573152,118090.0,118080.0,0.13168]
[1753264910789,6.19573152,118090.0,118080.0,0.0002]
[1753264911492,6.19573152,118090.0,118080.0,0.0012]
[1753264911944,6.32721152,118090.0,118080.0,0.0012]
[1753264912377,6.19683221,118090.0,118080.0,0.0012]
[1753264912899,6.1968021,118090.0,118080.0,0.0012]
[1753264913104,6.1978021,118090.0,118080.0,0.0002]
[1753264913530,6.21497563,118090.0,118080.0,0.0002]
[1753264913753,5.92998228,118090.0,118080.0,0.0002]
[1753264913972,6.21697563,118090.0,118080.0,0.0002]
[1753264914412,6.21997563,118090.0,118080.0,0.0002]
[1753264916191,6.19474706,118090.0,118080.0,0.0002]
[1753264916462,5.90775371,118090.0,118080.0,0.0002]
[1753264917327,5.90775151,118090.0,118080.0,0.0002]
[1753264918627,5.90774852,118090.0,118080.0,0.0002]
[1753264919483,5.7835595,118090.0,118080.0,0.48478335]
[1753264919714,5.59249391,118090.0,118080.0,0.48478335]
[1753264919944,0.68402601,118090.0,118080.0,0.48478335]
[1753264920126,0.70096187,118090.0,118080.0,0.66262873]
[1753264920419,0.69307667,118090.0,118080.0,0.67109734]
[1753264920631,0.68807667,118090.0,118080.0,0.67956581]
[1753264920841,0.68807667,118090.0,118080.0,0.67109734]
[1753264921059,0.68807667,118090.0,118080.0,0.48478335]
[1753264921060,0.67114095,118090.0,118080.0,0.48478335]
[1753264921277,0.67114645,118090.0,118080.0,0.48478335]
[1753264921500,0.67114645,118090.0,118080.0,0.65416004]
[1753264921726,0.67114645,118090.0,118080.0,1.38324224]
[1753264921727,0.1657759,118090.0,118080.0,1.38324224]
[1753264921956,0.3,118110.0,118100.0,0.24474933]
[1753264922175,0.3,118110.0,118100.0,1.22102058]
[1753264922176,0.27135,118110.0,118100.0,1.22102058]